bitfinex/quotes_ETHUSD_20250722
["timestamp","ask_amount","ask_price","bid_price","bid_amount"]
[1753203721332,0.03362746,3717.2,3716.3,0.4305]
[1753203721488,3.0,3717.1,3716.5,2.6906581]
[1753203721697,2.69020931,3717.2,3716.5,2.6906581]
[1753203721698,3.0,3717.2,3716.6,0.4305]
[1753203721896,3.0,3717.2,3716.2,1.1909]
[1753203722197,2.69039324,3717.0,3716.2,3.8818137]
[1753203722378,2.72404463,3716.9,3716.2,3.8818137]
[1753203722580,3.0,3717.5,3716.4,2.69071277]
[1753203722774,2.69027169,3717.1,3716.4,2.69075151]
[1753203723000,2.69034632,3717.0,3716.5,0.4305]
[1753203723185,2.69024521,3717.2,3716.6,0.4305]
[1753203723386,3.0,3717.2,3716.6,0.4305]
[1753203723590,2.69033519,3717.1,3716.6,0.4305]
[1753203724115,3.5592265,3717.2,3716.6,0.4305]
[1753203724318,2.69021247,3717.2,3716.6,0.4305]
[1753203724474,2.69027984,3717.1,3716.6,0.4305]
[1753203724675,2.69035057,3717.0,3716.6,0.4305]
[1753203724909,2.69054063,3716.8,3716.2,0.7604]
[1753203725297,2.72410514,3716.9,3716.2,3.45131573]
[1753203725501,2.69049986,3716.8,3716.2,0.7604]
[1753203726420,0.03363198,3716.7,3716.0,0.4315]
[1753203726599,2.69091834,3716.3,3716.0,0.001]
[1753203726799,2.69075933,3716.5,3716.0,0.001]
[1753203726994,0.4437,3716.7,3716.0,0.001]
[1753203727206,2.6907783,3716.4,3716.0,0.001]
[1753203727406,14.5,3716.7,3716.1,0.4305]
[1753203727593,2.69051383,3716.8,3716.1,3.1214749]
[1753203727907,3.0,3717.0,3716.2,3.27228133]
[1753203728213,20.19035719,3717.0,3716.4,2.69072046]
[1753203728393,17.5,3717.0,3716.4,2.69070755]
[1753203728595,17.5,3717.0,3716.4,2.69077601]
[1753203728791,0.002,3717.6,3716.5,0.01351697]
[1753203729017,5.69005367,3717.4,3716.5,3.12117065]
[1753203729208,6.9440161,3717.5,3716.8,2.69042812]
[1753203729415,4.253,3717.5,3716.9,2.69036411]
[1753203729618,4.253,3717.5,3716.5,0.4305]
[1753203729821,2.69012455,3717.3,3716.6,2.69061655]
[1753203730127,2.69012455,3717.3,3716.7,2.69055431]
[1753203730440,5.72370599,3717.4,3716.7,2.69055431]
[1753203730584,5.82448034,3717.4,3716.8,0.1344]
[1753203730781,2.69041405,3716.9,3716.8,0.1344]
[1753203731028,2.69041405,3716.9,3716.4,0.1344]
[1753203731227,2.69064288,3716.6,3716.0,0.7655]
[1753203731535,7.39491405,3716.9,3716.1,0.1344]
[1753203731536,0.1344,3716.7,3716.1,0.1344]
[1753203731831,0.1344,3716.7,3716.1,2.82538269]
[1753203732004,2.82497483,3716.7,3716.1,2.82538269]
[1753203732206,0.1344,3716.7,3716.4,2.69074477]
[1753203732394,0.4437,3717.4,3716.5,0.4305]
[1753203732595,2.69035034,3717.0,3716.5,0.4305]
[1753203732934,3.0,3717.0,3716.5,0.4305]
[1753203733487,0.1344,3717.1,3716.5,2.69070283]
[1753203733687,0.1344,3717.1,3716.5,3.12120283]
[1753203733897,0.002,3717.6,3716.9,2.69036129]
[1753203734107,0.1344,3717.3,3716.6,0.1344]
[1753203734311,0.1344,3717.3,3717.0,2.69033605]
[1753203734621,4.251,3717.4,3717.0,2.69031792]
[1753203734807,0.002,3717.4,3717.3,2.69012455]
[1753203734995,0.002,3717.4,3717.2,2.69017655]
[1753203735394,0.002,3717.4,3717.3,2.69012455]
[1753203738933,0.002,3717.4,3717.3,3.13252455]
[1753203739341,0.002,3717.4,3717.3,3.41877579]
[1753203740130,0.002,3717.4,3717.2,0.1344]
[1753203741251,0.002,3717.4,3716.7,4.71]
[1753203741409,2.85821374,3717.3,3716.7,4.8444]
[1753203741607,2.85821374,3717.3,3716.8,4.238]
[1753203741845,0.16802655,3717.3,3716.8,4.238]
[1753203742022,0.16802655,3717.3,3716.9,0.4424]
[1753203742023,0.1344,3717.3,3716.9,0.4424]
[1753203742223,0.1344,3717.3,3717.0,2.69033742]
[1753203742424,0.002,3717.4,3717.1,3.13266513]
[1753203742628,0.002,3717.4,3717.1,3.26706513]
[1753203742946,0.002,3717.4,3717.2,2.69019584]
[1753203743247,0.002,3717.4,3717.1,3.2670469]
[1753203743454,0.002,3717.4,3717.2,2.69019307]
[1753203743617,0.002,3717.4,3717.3,2.69012455]
[1753203743811,0.002,3717.4,3717.1,0.5768]
[1753203743812,2.69019692,3717.2,3717.1,0.1344]
[1753203744011,0.40361969,3717.2,3716.6,0.1344]
[1753203744335,2.69070361,3716.5,3716.4,0.001]
[1753203744534,2.7243374,3716.5,3716.4,0.001]
[1753203744937,2.69070361,3716.5,3716.4,0.001]
[1753203745317,7.39985982,3716.7,3716.4,0.001]
[1753203745318,17.22428288,3716.6,3716.4,0.001]
[1753203745522,5.69070361,3716.5,3716.4,0.001]
[1753203746640,7.237,3716.5,3716.4,0.001]
[1753203747642,0.4437,3717.1,3716.4,0.001]
[1753203747843,2.82504017,3716.6,3716.4,0.001]
[1753203748047,0.1344,3716.6,3716.4,0.001]
[1753203748422,3.1344,3716.6,3716.4,0.001]
[1753203749063,10.06004129,3716.6,3716.4,0.001]
[1753203749251,2.69070361,3716.5,3716.4,0.001]
[1753203749459,5.69070361,3716.5,3716.4,0.001]
[1753203750359,3.0,3716.5,3716.4,0.001]
[1753203750525,5.69070361,3716.5,3716.4,0.001]
[1753203750857,3.0,3716.5,3716.4,0.001]
[1753203751064,5.7243374,3716.5,3716.4,0.001]
[1753203751264,6.28230571,3716.5,3716.4,0.001]
[1753203752146,3.5916021,3716.5,3716.4,0.001]
[1753203752346,3.0,3716.5,3716.4,0.001]
[1753203752521,5.69070361,3716.5,3716.4,0.001]
[1753203753974,6.16000361,3716.5,3716.4,0.001]
[1753203754275,6.60370361,3716.5,3716.4,0.001]
[1753203755972,21.10370361,3716.5,3716.4,0.001]
[1753203756534,10.35940361,3716.5,3716.4,0.001]
[1753203756735,6.13440361,3716.5,3716.4,0.001]
[1753203756936,0.1344,3716.6,3716.4,0.4434]
[1753203757135,4.224,3716.9,3716.5,0.4424]
[1753203757575,5.69070361,3716.5,3716.4,0.001]
[1753203758575,6.16000361,3716.5,3716.4,0.001]
[1753203758775,3.0,3716.5,3716.4,0.001]
[1753203759090,4.225,3716.6,3716.4,0.4434]
[1753203759440,4.225,3716.6,3716.4,0.001]
[1753203759646,0.1344,3716.7,3716.4,0.001]
[1753203759843,4.225,3716.6,3716.4,0.001]
[1753203760477,2.8587374,3716.5,3716.4,0.001]
[1753203760677,0.16803379,3716.5,3716.4,0.001]
[1753203760993,0.1344,3716.5,3716.4,0.001]
[1753203761193,5.8587374,3716.5,3716.4,0.001]
[1753203761385,7.10253937,3716.5,3716.4,0.001]
[1753203761809,7.57183937,3716.5,3716.4,0.001]
[1753203762107,8.01553937,3716.5,3716.4,0.001]
[1753203762268,8.76404355,3716.5,3716.4,0.25206416]
[1753203762472,6.13469324,3716.1,3716.0,0.001]
[1753203762703,10.35969324,3716.1,3716.0,0.001]
[1753203762912,10.82899324,3716.1,3716.0,0.001]
[1753203763087,25.32899324,3716.1,3716.0,0.001]
[1753203765515,2.69128293,3715.7,3715.6,0.001]
[1753203765698,10.79859882,3715.7,3715.6,0.001]
[1753203765900,2.69179004,3715.0,3714.9,0.001]
[1753203766116,10.04819004,3715.0,3714.9,0.001]
[1753203767603,10.51229004,3715.0,3714.9,0.001]
[1753203768743,24.54819004,3715.0,3714.9,0.001]
[1753203768915,24.97395094,3715.0,3714.9,0.001]
[1753203770528,25.41765094,3715.0,3714.9,0.001]
[1753203770728,2.69220949,3714.5,3714.2,0.4588]
[1753203770935,7.04360949,3714.5,3714.2,0.4588]
[1753203771116,7.04360949,3714.5,3713.9,2.82698057]
[1753203771117,4.217,3714.5,3714.3,0.4588]
[1753203771316,6.90915439,3714.5,3714.2,0.1344]
[1753203771521,4.217,3714.5,3714.2,0.1344]
[1753203771722,4.217,3714.5,3714.3,0.4588]
[1753203772038,0.1344,3714.7,3714.4,0.4588]
[1753203772221,3.1344,3714.9,3714.5,0.754]
[1753203772530,3.0,3714.7,3714.6,0.4588]
[1753203772701,5.69200742,3714.7,3714.6,0.4588]
[1753203772897,2.6920799,3714.6,3714.2,0.5932]
[1753203773093,2.72580435,3714.5,3714.1,0.8228]
[1753203773294,6.91222485,3714.4,3713.8,1.348]
[1753203773598,2.72596849,3714.3,3713.8,1.348]
[1753203773793,2.69250667,3714.1,3713.9,0.4588]
[1753203773994,2.6925148,3714.0,3713.9,0.4588]
[1753203774431,4.219,3714.2,3713.7,0.02104778]
[1753203774632,2.8269592,3714.0,3713.7,0.02104778]
[1753203774838,2.6926598,3713.8,3713.7,0.02104778]
[1753203775129,6.9136598,3713.8,3713.7,0.02104778]
[1753203775318,6.9136598,3713.8,3713.5,0.7713]
[1753203775319,2.69280482,3713.6,3713.5,0.7713]
[1753203775525,2.69287733,3713.5,3713.4,0.4588]
[1753203775730,0.1344,3713.7,3713.4,0.42303362]
[1753203776232,0.1344,3713.7,3713.2,3.46437413]
[1753203776438,0.1344,3713.7,3713.2,0.7713]
[1753203776644,2.69232565,3714.3,3713.6,2.69276267]
[1753203776839,2.69266565,3713.8,3713.4,0.1344]
[1753203777233,3.0,3713.8,3713.4,0.1344]
[1753203777603,2.69285171,3713.6,3713.4,0.1344]
[1753203777818,0.1344,3713.6,3713.3,0.8159]
[1753203778017,3.1344,3713.6,3713.0,0.1344]
[1753203778325,4.22,3713.7,3713.4,0.001]
[1753203778326,6.01643789,3713.5,3713.4,0.001]
[1753203778530,10.23843789,3713.5,3713.4,0.001]
[1753203778829,7.54556056,3713.5,3713.4,0.001]
[1753203779215,0.1344,3713.7,3713.4,0.4598]
[1753203779539,4.226,3713.6,3713.4,0.001]
[1753203779921,4.226,3713.6,3713.4,0.4598]
[1753203780316,4.226,3713.6,3713.4,0.001]
[1753203780539,0.1344,3713.7,3713.5,0.4588]
[1753203780744,4.228,3713.6,3713.4,0.001]
[1753203780930,3.03366096,3713.5,3713.4,0.001]
[1753203781148,5.82727733,3713.5,3713.4,0.001]
[1753203781450,6.29137733,3713.5,3713.4,0.001]
[1753203781812,5.82727733,3713.5,3713.4,0.001]
[1753203786316,6.29137733,3713.5,3713.4,0.001]
[1753203786515,7.45274356,3713.5,3713.4,0.001]
[1753203787059,2.69350879,3712.7,3712.4,0.8247]
[1753203787256,2.69353231,3712.6,3712.5,0.4588]
[1753203787725,6.91853231,3712.6,3712.1,0.1344]
[1753203787926,4.225,3712.6,3712.1,0.1344]
[1753203788130,6.91853925,3712.6,3712.1,0.1344]
[1753203788359,3.0,3712.8,3712.2,0.01359561]
[1753203788544,4.223,3712.9,3712.5,0.1344]
[1753203788848,6.91633629,3712.9,3712.5,0.1344]
[1753203789248,2.69338693,3712.8,3712.5,0.1344]
[1753203789758,4.223,3712.9,3712.5,0.1344]
[1753203789965,6.91632161,3712.9,3712.5,0.1344]
[1753203790480,4.222,3712.8,3712.5,0.5932]
[1753203790820,6.91539926,3712.8,3712.5,0.1344]
[1753203791531,7.04979926,3712.8,3712.4,0.7649]
[1753203792090,4.3564,3712.8,3712.4,0.7649]
[1753203792642,2.69346009,3712.7,3712.4,0.7649]
[1753203792841,0.1344,3712.8,3712.4,0.7649]
[1753203793063,2.69366744,3712.5,3712.2,0.1344]
[1753203793373,0.1344,3712.8,3712.3,0.4588]
[1753203793539,0.1344,3712.8,3712.5,3.45158818]
[1753203793735,3.0,3713.1,3712.6,0.4588]
[1753203793975,3.0,3713.1,3712.5,0.758]
[1753203793976,3.0,3712.9,3712.7,0.5932]
[1753203794147,3.0,3712.9,3712.5,0.758]
[1753203794349,3.0,3712.9,3712.5,1.2168]
[1753203794552,3.0,3712.9,3712.5,0.758]
[1753203794754,3.0,3712.9,3712.6,0.4588]
[1753203795266,2.69299558,3713.4,3712.8,2.69338387]
[1753203795578,4.3524,3713.3,3712.9,3.15206338]
[1753203795762,4.3524,3713.3,3713.0,3.15203122]
[1753203795966,1.35519327,3713.9,3713.1,0.4588]
[1753203796174,0.1344,3713.6,3713.2,2.69309245]
[1753203796351,0.1344,3713.6,3713.2,3.15189245]
[1753203796557,4.217,3713.5,3713.3,1.2463]
[1753203796754,1.35519327,3713.9,3713.3,1.46420089]
[1753203796954,1.35519327,3713.9,3713.4,0.5932]
[1753203797275,1.35519327,3713.9,3713.5,0.4588]
[1753203797576,5.57219327,3713.9,3713.6,3.16059763]
[1753203797776,0.1344,3714.0,3713.5,2.69285382]
[1753203798073,4.216,3713.9,3713.7,0.4678]
[1753203798275,6.90865753,3713.9,3713.4,0.1344]
[1753203798483,4.216,3713.9,3713.5,0.4678]
[1753203798849,4.215,3713.9,3713.5,0.4678]
[1753203799548,0.1344,3714.0,3713.6,0.4678]
[1753203799792,4.214,3714.0,3713.9,2.69252923]
[1753203799993,4.214,3714.0,3713.9,2.82692923]
[1753203800200,4.214,3714.0,3713.9,3.29472923]
[1753203801301,0.002,3714.7,3714.6,2.6920799]
[1753203801600,0.002,3714.7,3714.0,1.2707]
[1753203801789,0.002,3714.7,3714.4,2.82658012]
[1753203802285,0.002,3714.7,3714.4,0.1344]
[1753203803145,0.4849,3714.5,3713.7,5.4971]
[1753203803348,4.3464,3714.4,3713.8,0.1344]
[1753203803579,7.03862866,3714.4,3713.8,0.1344]
[1753203803774,4.3464,3714.4,3713.8,0.1344]
[1753203803993,2.69230841,3714.3,3713.8,0.1344]
[1753203804487,2.6925873,3713.9,3713.8,0.1344]
[1753203804882,2.6926598,3713.8,3713.7,0.7871]
[1753203805190,2.6926598,3713.8,3713.4,0.1344]
[1753203805550,4.3504,3714.1,3713.4,0.1344]
[1753203805752,7.04286883,3714.1,3713.4,0.6022]
[1753203806078,2.69265852,3713.9,3713.4,0.6022]
[1753203806468,7.04286883,3714.1,3713.4,0.6022]
[1753203806663,2.69266655,3713.8,3713.4,0.1344]
[1753203806869,6.90666655,3713.8,3713.4,0.1344]
[1753203807495,2.69287733,3713.5,3713.2,0.8226]
[1753203808189,2.69299284,3713.4,3713.2,0.8226]
[1753203808561,6.90890101,3713.5,3713.2,0.8226]
[1753203809062,6.90894692,3713.5,3713.2,0.8226]
[1753203809392,4.216,3713.5,3713.2,0.8226]
[1753203809691,2.69297245,3713.4,3713.2,0.8226]
[1753203809985,6.908898,3713.5,3713.2,0.8226]
[1753203810404,2.69296917,3713.4,3713.2,0.8226]
[1753203810887,6.90890447,3713.5,3713.2,0.8226]
[1753203811191,6.90887952,3713.5,3713.2,0.8226]
[1753203811354,0.4849,3714.0,3713.2,1.2904]
[1753203811562,5.69277716,3713.7,3713.4,0.1344]
[1753203811760,2.69287733,3713.5,3713.4,0.1344]
[1753203812010,4.211,3713.6,3713.4,0.1344]
[1753203812462,6.90381652,3713.6,3713.4,0.1344]
[1753203813402,4.211,3713.6,3713.4,0.1344]
[1753203813560,0.5696,3714.1,3713.4,0.1344]
[1753203813763,2.69272178,3713.8,3713.4,0.1344]
[1753203813990,4.208,3713.7,3713.4,0.1344]
[1753203814158,4.208,3713.6,3713.4,0.1344]
[1753203815068,4.206,3713.5,3713.4,0.1344]
[1753203815865,0.1344,3714.1,3713.4,0.74468]
[1753203816114,0.1344,3714.6,3713.6,2.69280482]
[1753203816265,4.206,3714.5,3713.8,0.8216]
[1753203816465,4.206,3714.5,3714.3,0.1344]
[1753203817001,4.206,3714.5,3714.3,0.6022]
[1753203817208,4.206,3714.5,3714.3,0.1344]
[1753203820008,0.002,3714.7,3714.3,0.1344]
[1753203820297,0.002,3714.7,3714.4,0.4678]
[1753203820497,4.201,3714.6,3714.5,0.1344]
[1753203820883,0.002,3714.7,3714.5,1.4275]
[1753203821085,0.002,3714.7,3714.6,3.1598799]
[1753203821315,0.002,3714.7,3714.6,0.4678]
[1753203821998,0.002,3714.7,3714.6,3.1598799]
[1753203822900,0.002,3714.7,3714.6,3.9851799]
[1753203829237,0.002,3714.7,3714.6,0.8253]
[1753203829446,2.6920799,3714.6,3714.5,0.1344]
[1753203829624,3.1330799,3714.6,3714.5,0.1344]
[1753203829937,2.69218031,3714.5,3713.9,5.4665]
[1753203830137,2.69223813,3714.4,3714.2,0.1344]
[1753203830338,2.72589094,3714.4,3714.2,0.1344]
[1753203830642,0.441,3714.3,3714.2,0.1344]
[1753203834497,7.32329733,3714.3,3714.2,0.1344]
[1753203835047,2.6926402,3713.9,3713.3,0.7968]
[1753203835193,2.69278657,3713.7,3713.5,0.1344]
[1753203835400,2.72646488,3713.6,3713.5,0.1344]
[1753203835639,2.72646488,3713.6,3713.3,0.1344]
[1753203835640,2.6928788,3713.5,3713.3,0.1344]
[1753203836135,4.66466187,3713.4,3712.8,4.71]
[1753203836453,4.19,3713.4,3713.1,0.1344]
[1753203836898,6.1779949,3713.2,3713.1,0.1344]
[1753203837094,6.1779949,3713.2,3712.6,0.001]
[1753203837095,6.3123949,3713.2,3712.6,0.1354]
[1753203837338,3.13421217,3713.1,3712.6,0.1354]
[1753203837543,4.19,3713.0,3712.6,0.1354]
[1753203837749,2.69331289,3712.9,3712.6,0.1354]
[1753203838091,0.441,3712.8,3712.6,0.1354]
[1753203839189,2.72699476,3712.9,3712.6,0.1354]
[1753203839389,0.441,3712.8,3712.6,0.1354]
[1753203839594,0.4746664,3712.9,3712.6,0.1354]
[1753203840032,0.441,3712.8,3712.6,0.1354]
[1753203841108,2.7270321,3712.9,3712.6,0.1354]
[1753203841440,0.441,3712.8,3712.6,0.1354]
[1753203841596,0.03366821,3712.7,3712.6,0.001]
[1753203841796,3.13445759,3712.7,3712.6,0.001]
[1753203842248,7.32445759,3712.7,3712.6,0.001]
[1753203842466,8.34304735,3712.7,3712.6,0.001]
[1753203843349,7.32445759,3712.7,3712.6,0.001]
[1753203844534,4.191,3712.7,3712.6,2.69453014]
[1753203844793,7.36935759,3712.7,3712.6,0.001]
[1753203845067,8.95103075,3712.7,3712.6,0.001]
[1753203845446,4.3254,3712.7,3712.6,0.001]
[1753203845642,4.7664,3712.7,3712.6,0.001]
[1753203845843,7.94475759,3712.7,3712.6,0.001]
[1753203846043,10.94475759,3712.7,3712.6,0.001]
[1753203847563,6.75375759,3712.7,3712.6,0.001]
[1753203847759,10.94475759,3712.7,3712.6,0.001]
[1753203848171,6.75375759,3712.7,3712.6,0.001]
[1753203848335,18.79664891,3712.7,3712.6,0.001]
[1753203850178,2.6942327,3711.7,3711.3,0.9168]
[1753203850345,4.191,3711.6,3711.3,0.9168]
[1753203850545,4.191,3711.5,3711.3,0.9168]
[1753203851083,4.191,3711.5,3710.2,3.45198521]
[1753203851084,2.69444661,3711.4,3711.0,0.7861]
[1753203851244,4.191,3711.3,3711.1,0.1344]
[1753203851578,3.1344,3711.2,3710.7,0.8033]
[1753203851751,3.4849,3711.9,3710.8,3.12793669]
[1753203851951,3.1344,3711.7,3711.0,0.1344]
[1753203852151,4.22567819,3711.6,3711.0,0.1344]
[1753203852338,2.6943552,3711.5,3711.0,0.1344]
[1753203852539,4.191,3711.4,3711.0,0.1344]
[1753203852874,7.32644548,3711.4,3711.0,0.1344]
[1753203853047,4.632,3711.4,3711.0,2.82904145]
[1753203853251,4.191,3711.4,3711.1,2.6946011]
[1753203853467,4.191,3711.4,3711.0,0.1344]
[1753203853879,3.1344,3711.7,3711.0,0.1344]
[1753203854085,4.191,3711.6,3711.1,2.69456857]
[1753203854375,4.191,3711.5,3711.4,2.69433428]
[1753203854585,4.191,3711.5,3711.0,0.1344]
[1753203854801,4.632,3711.5,3711.1,2.69456809]
[1753203854980,4.632,3711.5,3711.2,2.69454023]
[1753203855493,4.191,3711.5,3711.3,2.69446178]
[1753203855703,4.191,3711.5,3711.2,2.69448197]
[1753203855993,0.1344,3711.7,3711.0,0.1344]
[1753203856201,0.1344,3711.7,3711.6,2.69425584]
[1753203856371,0.1344,3711.7,3711.0,0.27148]
[1753203856372,4.192,3711.7,3711.4,0.8118]
[1753203856562,0.1344,3712.2,3711.6,0.5675]
[1753203856881,6.5974,3712.6,3712.0,0.8118]
[1753203857104,0.1344,3712.6,3712.5,2.69360269]
[1753203857433,4.192,3712.6,3712.5,3.14910269]
[1753203857726,4.192,3712.6,3712.5,2.69360269]
[1753203858086,0.4849,3713.4,3712.6,0.7619]
[1753203858326,4.192,3713.3,3712.7,2.69343197]
[1753203858496,4.22566277,3713.3,3712.8,0.1344]
[1753203858703,4.22566277,3713.3,3712.8,2.82776548]
[1753203858900,4.22566277,3713.3,3712.8,0.1344]
[1753203859101,0.4504,3713.2,3712.8,0.1344]
[1753203859406,3.4504,3713.2,3712.8,2.82777507]
[1753203859604,3.4504,3713.2,3712.8,0.1344]
[1753203860734,0.1344,3713.4,3712.8,0.1344]
[1753203860899,4.191,3713.3,3712.9,2.6933125]
[1753203861503,4.191,3713.3,3712.8,2.82776612]
[1753203861731,4.191,3713.3,3712.8,0.1344]
[1753203861892,4.191,3713.3,3712.8,2.82774012]
[1753203862116,4.191,3713.3,3713.0,2.69323582]
[1753203862420,4.191,3713.3,3713.1,2.6930955]
[1753203862642,3.0,3713.7,3712.7,0.4555]
[1753203862845,3.0,3713.5,3713.0,2.82759592]
[1753203863020,3.0,3713.5,3713.1,2.69315529]
[1753203863221,0.1344,3713.6,3713.1,2.69315529]
[1753203863453,3.0,3713.5,3713.0,2.8276201]
[1753203863753,4.191,3713.4,3713.1,2.69316393]
[1753203863929,4.191,3713.4,3713.0,0.1344]
[1753203864111,4.191,3713.4,3713.1,0.4555]
[1753203864630,4.191,3713.3,3713.2,3.1485949]
[1753203864833,3.0,3713.8,3713.5,2.6928646]
[1753203865015,3.0,3713.8,3713.6,2.69280482]
[1753203865016,4.191,3713.7,3713.6,2.69280482]
[1753203865218,4.191,3713.7,3713.5,2.82723314]
[1753203865459,4.191,3713.7,3713.6,2.69280482]
[1753203865636,4.191,3713.8,3713.6,3.1482536]
[1753203865833,4.191,3713.8,3713.6,0.4555]
[1753203866035,4.191,3713.8,3713.7,0.1344]
[1753203866227,4.191,3713.8,3713.7,2.82713231]
[1753203866622,4.0697,3714.5,3713.9,2.69254207]
[1753203866828,3.0,3714.3,3713.7,0.5899]
[1753203867026,3.0,3714.3,3713.7,3.28258635]
[1753203867250,3.0,3714.3,3713.8,2.69265304]
[1753203867422,3.0,3714.3,3713.9,2.69258333]
[1753203867623,0.69662894,3714.4,3714.0,2.69246077]
[1753203867847,4.19,3714.2,3714.0,3.28236077]
[1753203868051,0.1364,3714.7,3714.1,2.69244231]
[1753203868252,4.19,3714.6,3714.1,3.14793525]
[1753203868413,4.19,3714.6,3714.3,2.69222962]
[1753203868618,4.19,3714.6,3714.1,0.4555]
[1753203868857,4.19,3714.6,3714.2,2.6923689]
[1753203869821,4.19,3714.6,3714.0,0.1344]
[1753203870045,4.19,3714.5,3714.4,0.8267]
[1753203870232,4.19,3714.5,3714.4,0.9611]
[1753203871365,0.002,3714.7,3714.4,1.4166]
[1753203871538,4.19,3714.6,3714.4,1.4166]
[1753203872058,0.002,3714.7,3714.6,2.6920799]
[1753203872059,4.192,3714.7,3714.6,2.6920799]
[1753203872263,4.192,3714.7,3714.4,0.9611]
[1753203873151,4.189,3714.6,3714.4,0.9611]
[1753203873528,0.4504,3714.5,3713.3,0.8034]
[1753203873732,2.6926015,3713.9,3713.8,0.1344]
[1753203874060,4.6394,3713.9,3713.8,0.1344]
[1753203874261,4.189,3713.9,3713.8,0.1344]
[1753203874665,10.61477157,3713.9,3713.8,0.1344]
[1753203874877,10.61477157,3713.9,3712.9,0.4555]
[1753203874878,2.69283222,3713.6,3713.4,0.1344]
[1753203875167,4.189,3713.5,3713.4,0.1344]
[1753203877147,4.189,3713.5,3713.1,0.1344]
[1753203877148,2.69295109,3713.4,3713.1,0.1344]
[1753203877352,2.6930949,3713.2,3712.5,0.7512]
[1753203877549,6.88217131,3713.1,3712.8,0.1344]
[1753203877872,0.9353,3713.0,3712.8,0.1344]
[1753203878072,3.14365311,3713.0,3712.8,0.1344]
[1753203878646,0.4504,3713.0,3712.8,0.1344]
[1753203878858,6.88218624,3713.1,3712.8,0.1344]
[1753203879243,4.189,3713.1,3712.8,0.1344]
[1753203880058,0.1344,3713.4,3712.8,0.1344]
[1753203880259,4.189,3713.3,3713.0,0.1344]
[1753203880663,2.69311655,3713.2,3713.0,0.1344]
[1753203881086,2.69325052,3713.0,3712.3,0.803]
[1753203881265,4.189,3712.9,3712.8,0.1344]
[1753203882177,4.189,3713.0,3712.9,0.8262]
[1753203882375,2.82707953,3713.8,3712.9,3.51951177]
[1753203882376,4.189,3713.1,3712.9,3.51951177]
[1753203882604,4.189,3713.2,3713.0,2.69323996]
[1753203882787,0.1344,3713.8,3713.1,3.50055418]
[1753203883101,4.189,3713.7,3713.4,0.1344]
[1753203883302,3.17726723,3714.3,3713.4,0.4555]
[1753203883502,6.88139482,3714.2,3713.7,0.1344]
[1753203883918,4.22165552,3714.1,3713.7,0.1344]
[1753203884498,0.4504,3714.0,3713.7,0.1344]
[1753203884908,4.188,3713.9,3713.7,0.1344]
[1753203885213,4.188,3713.8,3713.7,0.1344]
[1753203887817,0.4504,3714.0,3713.7,0.1344]
[1753203888017,4.188,3713.8,3713.7,0.1344]
[1753203888231,1.0612,3714.3,3713.7,0.1344]
[1753203888389,4.188,3714.2,3713.7,0.49282158]
[1753203888592,0.002,3714.6,3713.7,0.49282158]
[1753203888593,0.002,3714.6,3714.1,0.1344]
[1753203888819,4.188,3714.5,3714.1,0.1344]
[1753203889614,4.6299,3714.5,3714.1,0.1344]
[1753203890089,4.188,3714.5,3714.1,0.1344]
[1753203890723,0.002,3714.6,3714.2,0.8055]
[1753203890931,0.002,3714.6,3714.4,0.1344]
[1753203891105,0.4439,3714.6,3714.4,0.1344]
[1753203891828,0.47755099,3714.6,3714.4,0.1344]
[1753203892136,0.4439,3714.6,3714.4,0.1344]
[1753203892348,0.002,3714.6,3714.4,0.1344]
[1753203893404,0.002,3714.6,3714.4,0.6077]
[1753203893937,0.002,3714.6,3714.4,0.1344]
[1753203894441,0.4419,3714.5,3714.4,0.1344]
[1753203894653,0.4419,3714.5,3714.2,0.1344]
[1753203895940,0.4419,3714.4,3714.2,0.1344]
[1753203896931,0.4419,3714.3,3714.2,0.1344]
[1753203897851,2.6921583,3714.5,3714.2,0.1344]
[1753203898147,4.188,3714.6,3714.2,0.1344]
[1753203898730,4.186,3714.5,3714.2,0.1344]
[1753203898937,0.002,3714.6,3714.3,0.8016]
[1753203899277,0.002,3714.6,3714.5,6.49375237]
[1753203899433,0.002,3714.7,3714.6,3.2420799]
[1753203899641,0.002,3714.7,3714.6,4.67473345]
[1753203899843,0.002,3714.7,3714.6,4.12473345]
[1753203900030,0.002,3714.7,3714.6,1.4191]
[1753203900225,0.002,3714.7,3714.6,0.9458]
[1753203900642,0.4439,3714.7,3714.6,0.1344]
[1753203901135,0.002,3714.7,3714.6,0.1344]
[1753203901628,0.002,3714.7,3714.6,0.6077]
[1753203901828,0.002,3714.7,3714.6,2.01966944]
[1753203902266,0.002,3714.7,3714.6,2.03322299]
[1753203902432,0.002,3714.7,3714.6,1.54636944]
[1753203902637,0.002,3714.7,3714.6,0.9458]
[1753203903163,0.002,3714.7,3714.6,0.1344]
[1753203905665,0.002,3714.7,3714.6,0.6077]
[1753203905854,0.002,3714.7,3714.6,4.09743345]
[1753203906048,0.002,3714.7,3714.6,4.0838799]
[1753203906254,0.002,3714.7,3714.6,5.18134517]
[1753203910174,0.002,3714.7,3714.6,8.73134517]
[1753203910567,0.002,3714.7,3714.6,17.62534517]
[1753203911174,0.002,3715.4,3715.3,4.01297268]
[1753203911375,0.002,3715.4,3715.3,12.90697268]
[1753203911567,0.002,3715.4,3715.3,16.18463131]
[1753203911762,0.002,3715.4,3715.3,19.18463131]
[1753203912479,0.002,3715.4,3715.3,23.63263131]
[1753203913191,1e-08,3715.4,3715.3,23.63263131]